bitfinex/quotes_BTCUSD_20251011
["timestamp","ask_amount","ask_price","bid_price","bid_amount"]
[1760169789746,0.16863,110690.0,110660.0,0.18986168]
[1760169789949,0.03879,110680.0,110660.0,0.18986168]
[1760169790283,0.03879,110680.0,110660.0,0.180825]
[1760169790680,0.16863,110670.0,110660.0,9.149e-05]
[1760169790890,0.34934744,110670.0,110660.0,9.149e-05]
[1760169791100,0.68934744,110670.0,110660.0,9.149e-05]
[1760169791499,0.68934744,110670.0,110580.0,0.10924321]
[1760169791500,0.18081273,110620.0,110580.0,0.10924321]
[1760169791701,0.37879,110630.0,110600.0,0.70529772]
[1760169792107,0.37879,110630.0,110600.0,0.18987179]
[1760169792303,0.37879,110630.0,110610.0,0.18081533]
[1760169792503,0.22861723,110650.0,110620.0,0.18983908]
[1760169792504,0.37879,110650.0,110620.0,0.18983908]
[1760169792744,0.37879,110650.0,110630.0,0.18077694]
[1760169792947,0.37879,110650.0,110620.0,0.18983908]
[1760169793096,0.17982615,110650.0,110620.0,0.18983908]
[1760169793299,0.03879,110650.0,110620.0,0.18983908]
[1760169793497,0.03879,110640.0,110620.0,0.34]
[1760169793701,0.03879,110640.0,110620.0,0.52130322]
[1760169793940,0.03879,110650.0,110630.0,0.18078278]
[1760169794362,0.11648,110650.0,110620.0,0.34050751]
[1760169794565,0.09094,110640.0,110620.0,0.34050751]
[1760169794805,0.09094,110640.0,110620.0,0.52130561]
[1760169795015,0.27170761,110640.0,110620.0,0.34050751]
[1760169795188,0.03877,110630.0,110620.0,0.34050751]
[1760169795389,0.08672,110630.0,110620.0,0.34050751]
[1760169795615,0.34267278,110630.0,110620.0,0.00050751]
[1760169796335,0.35923801,110630.0,110620.0,0.00050751]
[1760169796648,0.69923801,110630.0,110620.0,0.00050751]
[1760169797059,0.68267278,110630.0,110620.0,0.00050751]
[1760169798241,0.50189,110630.0,110620.0,0.00050751]
[1760169798474,0.37879,110640.0,110620.0,0.18130664]
[1760169798841,0.37879,110640.0,110620.0,0.00050751]
[1760169798842,0.08772,110630.0,110620.0,0.00050751]
[1760169799367,0.001,110630.0,110620.0,0.00050751]
[1760169799568,0.08772,110630.0,110620.0,0.00050751]
[1760169799847,0.03877,110630.0,110620.0,0.00050751]
[1760169800246,0.16189,110630.0,110620.0,0.00050751]
[1760169800566,0.34267278,110630.0,110620.0,0.00050751]
[1760169800933,0.08772,110630.0,110620.0,0.00050751]
[1760169801140,0.34440848,110630.0,110620.0,0.00050751]
[1760169801487,0.34367278,110630.0,110620.0,0.00050751]
[1760169801688,0.68367278,110630.0,110620.0,0.00050751]
[1760169805283,0.18082048,110610.0,110580.0,0.0002]
[1760169805519,0.03877,110590.0,110580.0,0.00035214]
[1760169805916,0.03877,110590.0,110580.0,0.18121667]
[1760169806293,0.03877,110590.0,110580.0,0.00035214]
[1760169806629,0.03877,110610.0,110600.0,0.18083182]
[1760169806927,0.08672,110610.0,110590.0,0.18084817]
[1760169807247,0.08672,110610.0,110600.0,0.18083182]
[1760169807406,0.03877,110610.0,110590.0,0.18084817]
[1760169807618,0.03877,110600.0,110590.0,0.18084817]
[1760169807815,0.08672,110600.0,110580.0,0.19125989]
[1760169808016,0.03877,110600.0,110590.0,0.18084817]
[1760169808553,0.03877,110610.0,110590.0,0.18084817]
[1760169808761,0.03877,110620.0,110600.0,0.18083182]
[1760169808965,0.03877,110630.0,110610.0,0.18081547]
[1760169809177,0.03877,110640.0,110630.0,0.18078278]
[1760169809390,0.03945553,110650.0,110620.0,0.18079913]
[1760169809593,0.03945553,110650.0,110630.0,0.18078259]
[1760169809953,0.29537653,110650.0,110620.0,0.18983908]
[1760169810156,5.60744153,110620.0,110610.0,0.18081547]
[1760169810359,5.60744153,110620.0,110610.0,0.69639354]
[1760169810561,5.60744153,110620.0,110610.0,0.18096761]
[1760169811786,5.60744153,110620.0,110610.0,0.00015214]
[1760169811997,5.60744153,110620.0,110610.0,0.18096761]
[1760169812725,5.60744153,110620.0,110610.0,0.00015214]
[1760169812877,5.69416153,110620.0,110610.0,0.00015214]
[1760169813283,5.69416153,110620.0,110610.0,0.18096761]
[1760169813489,0.18084508,110600.0,110580.0,0.0002]
[1760169813723,0.03877,110590.0,110580.0,0.00035231]
[1760169813952,0.34347387,110590.0,110580.0,0.00035231]
[1760169814104,0.34273817,110590.0,110580.0,0.00035231]
[1760169814773,0.68273817,110590.0,110580.0,0.00035231]
[1760169815207,0.69928014,110590.0,110580.0,0.00035231]
[1760169815566,0.72943204,110590.0,110580.0,0.00035231]
[1760169815773,0.69928014,110590.0,110580.0,0.00035231]
[1760169816618,0.70028014,110590.0,110580.0,0.00035231]
[1760169817204,0.73043204,110590.0,110580.0,0.00035231]
[1760169818406,0.73043184,110590.0,110580.0,0.00035231]
[1760169819716,0.74461747,110590.0,110580.0,0.00035231]
[1760169819972,0.71446557,110590.0,110580.0,0.00035231]
[1760169822342,0.74461747,110590.0,110580.0,0.00035231]
[1760169823635,0.71446557,110590.0,110580.0,0.00035231]
[1760169824283,0.71449637,110590.0,110580.0,0.00035231]
[1760169825400,0.74464827,110590.0,110580.0,0.00035231]
[1760169825815,0.76964826,110590.0,110580.0,0.00035231]
[1760169826026,0.79703101,110590.0,110580.0,0.00035231]
[1760169826672,0.71449637,110590.0,110580.0,0.00035231]
[1760169828807,0.74464827,110590.0,110580.0,0.00035231]
[1760169830394,0.71449637,110590.0,110580.0,0.00035231]
[1760169830592,0.72278502,110590.0,110580.0,0.00035231]
[1760169831057,0.37449637,110590.0,110580.0,0.00035231]
[1760169831295,0.03977,110590.0,110580.0,0.00035231]
[1760169831485,0.001,110590.0,110580.0,0.18121684]
[1760169831684,0.001,110590.0,110580.0,0.69664277]
[1760169832324,0.2358373,110600.0,110580.0,0.00035231]
[1760169832559,0.03941,110590.0,110580.0,0.00035231]
[1760169832774,0.22025817,110590.0,110580.0,0.00035231]
[1760169832994,0.33920817,110590.0,110580.0,0.00035231]
[1760169833663,0.001,110590.0,110580.0,0.51577824]
[1760169833867,0.08762,110590.0,110580.0,0.18121684]
[1760169834084,0.34,110600.0,110580.0,0.69664277]
[1760169834298,5.84612354,110620.0,110590.0,0.6952741]
[1760169834524,0.63070127,110610.0,110580.0,0.00035231]
[1760169834727,0.041634,110600.0,110580.0,0.18121615]
[1760169834936,0.28996557,110610.0,110590.0,0.02064]
[1760169835144,0.02488396,110610.0,110600.0,0.20147182]
[1760169835359,5.60744153,110620.0,110610.0,0.18081547]
[1760169835561,5.63233244,110620.0,110610.0,0.25150547]
[1760169835770,5.63233244,110620.0,110610.0,0.8377914]
[1760169836026,5.61573847,110620.0,110610.0,0.8377914]
[1760169836267,5.6323301,110620.0,110610.0,0.07069]
[1760169836479,5.6323301,110620.0,110610.0,0.7669314]
[1760169836694,5.60744153,110620.0,110610.0,0.8377914]
[1760169837106,5.6240345,110620.0,110610.0,0.32136547]
[1760169837306,5.6240345,110620.0,110610.0,0.8367914]
[1760169837749,5.60744153,110620.0,110610.0,0.8367914]
[1760169837981,5.60844153,110620.0,110610.0,0.25050547]
[1760169839319,5.61674436,110620.0,110610.0,0.8367914]
[1760169839536,5.61674436,110620.0,110610.0,0.32136547]
[1760169839740,5.61674436,110620.0,110610.0,0.8367914]
[1760169841421,5.61674436,110620.0,110610.0,0.7659314]
[1760169841626,5.61674436,110620.0,110610.0,0.06969]
[1760169841827,5.70336436,110620.0,110600.0,0.2004713]
[1760169842652,0.03841,110610.0,110590.0,0.02064]
[1760169842861,0.299004,110610.0,110590.0,0.02064]
[1760169843068,0.2982683,110610.0,110590.0,0.02064]
[1760169843478,0.18083182,110600.0,110590.0,0.02064]
[1760169843686,0.27575617,110600.0,110580.0,0.00035231]
[1760169843887,0.21925817,110590.0,110580.0,0.00035231]
[1760169844117,0.10915,110590.0,110580.0,0.00035231]
[1760169844360,0.26820387,110590.0,110580.0,0.00035231]
[1760169844556,0.26746817,110590.0,110580.0,0.00035231]
[1760169844758,0.34652212,110590.0,110580.0,0.00035231]
[1760169845399,0.68652212,110590.0,110580.0,0.00035231]
[1760169845635,0.70568153,110590.0,110580.0,0.00035231]
[1760169846231,0.73583343,110590.0,110580.0,0.00035231]
[1760169846676,0.76740534,110590.0,110580.0,0.00035231]
[1760169846877,0.73583343,110590.0,110580.0,0.00035231]
[1760169847090,0.76740534,110590.0,110580.0,0.00035231]
[1760169847292,0.73683343,110590.0,110580.0,0.00035231]
[1760169847653,0.73583343,110590.0,110580.0,0.00035231]
[1760169848079,0.70668153,110590.0,110580.0,0.00035231]
[1760169848885,0.70668116,110590.0,110580.0,0.00035231]
[1760169850062,0.73683306,110590.0,110580.0,0.00035231]
[1760169853488,0.76183305,110590.0,110580.0,0.00035231]
[1760169854150,0.73168115,110590.0,110580.0,0.00035231]
[1760169854366,0.76183305,110590.0,110580.0,0.00035231]
[1760169856832,0.86183304,110590.0,110580.0,0.00035231]
[1760169857715,0.83168114,110590.0,110580.0,0.00035231]
[1760169857944,0.86183304,110590.0,110580.0,0.00035231]
[1760169858935,0.86182345,110590.0,110580.0,0.00035231]
[1760169859845,0.87601194,110590.0,110580.0,0.00035231]
[1760169868940,0.8760341,110590.0,110580.0,0.00035231]
[1760169869386,0.38088222,110590.0,110580.0,0.00035231]
[1760169869595,0.34753432,110590.0,110580.0,0.00035231]
[1760169869998,0.68753432,110590.0,110580.0,0.00035231]
[1760169870205,0.34753432,110590.0,110580.0,0.00035231]
[1760169871006,0.68753432,110590.0,110580.0,0.00035231]
[1760169871898,0.71768622,110590.0,110580.0,0.00035231]
[1760169872108,0.73689512,110590.0,110580.0,0.00035231]
[1760169872740,0.70674322,110590.0,110580.0,0.00035231]
[1760169873828,0.68753432,110590.0,110580.0,0.00035231]
[1760169874259,0.73693195,110590.0,110580.0,0.00035231]
[1760169875403,0.70679279,110590.0,110580.0,0.00035231]
[1760169876093,0.73694469,110590.0,110580.0,0.00035231]
[1760169879192,0.70679279,110590.0,110580.0,0.00035231]
[1760169880065,0.68753432,110590.0,110580.0,0.00035231]
[1760169880496,0.73694018,110590.0,110580.0,0.00035231]
[1760169883019,0.75364884,110590.0,110580.0,0.00035231]
[1760169885091,0.87864882,110590.0,110580.0,0.00035231]
[1760169885525,0.85364883,110590.0,110580.0,0.00035231]
[1760169885733,0.87864882,110590.0,110580.0,0.00035231]
[1760169885955,0.77864883,110590.0,110580.0,0.00035231]
[1760169886169,0.87864882,110590.0,110580.0,0.00035231]
[1760169886398,0.77864883,110590.0,110580.0,0.00035231]
[1760169886598,0.72349694,110590.0,110580.0,0.00035231]
[1760169886744,0.75364884,110590.0,110580.0,0.00035231]
[1760169887144,0.85364883,110590.0,110580.0,0.00035231]
[1760169887764,0.75364884,110590.0,110580.0,0.00035231]
[1760169887971,0.85364883,110590.0,110580.0,0.00035231]
[1760169888166,0.75364884,110590.0,110580.0,0.00035231]
[1760169888712,0.41364884,110590.0,110580.0,0.00035231]
[1760169888911,0.75364884,110590.0,110580.0,0.00035231]
[1760169889490,0.49259743,110590.0,110580.0,0.00035231]
[1760169889747,0.54261434,110590.0,110580.0,0.00035231]
[1760169889897,0.72346251,110590.0,110580.0,0.00035231]
[1760169890324,0.67660195,110590.0,110580.0,0.00035231]
[1760169890577,0.01518691,110590.0,110580.0,0.26077684]
[1760169890706,0.01518691,110590.0,110580.0,0.33485684]
[1760169890925,0.001,110590.0,110580.0,0.33485684]
[1760169891702,0.2166629,110600.0,110580.0,0.33485684]
[1760169891878,0.26317387,110590.0,110580.0,0.00035231]
[1760169892046,0.26343817,110590.0,110580.0,0.00035231]
[1760169892470,0.18184817,110590.0,110580.0,0.04788231]
[1760169892676,0.001,110590.0,110580.0,0.26077684]
[1760169892873,0.18184817,110590.0,110580.0,0.15399231]
[1760169893073,0.18084817,110590.0,110580.0,0.07991231]
[1760169893299,0.37857479,110610.0,110580.0,0.34389451]
[1760169893484,0.03857479,110610.0,110600.0,0.03518]
[1760169893692,0.00016479,110610.0,110600.0,0.26354182]
[1760169894095,0.00016479,110610.0,110600.0,0.33762182]
[1760169894300,5.60283464,110620.0,110610.0,0.17981547]
[1760169894446,5.60283464,110620.0,110610.0,0.26252547]
[1760169894654,5.60283464,110620.0,110610.0,0.33660547]
[1760169895053,5.94283464,110620.0,110610.0,0.33560547]
[1760169895608,5.94223574,110620.0,110610.0,0.33560547]
[1760169895833,5.94223574,110620.0,110610.0,0.08271]
[1760169896010,6.27832487,110620.0,110600.0,0.21600874]
[1760169896215,0.18155117,110610.0,110600.0,0.03518]
[1760169896414,0.03583,110610.0,110600.0,0.21601182]
[1760169896617,5.94323574,110620.0,110610.0,0.26352547]
[1760169897023,5.94323574,110620.0,110610.0,0.33760547]
[1760169897257,5.60323574,110620.0,110610.0,0.33760547]
[1760169897432,5.60223574,110620.0,110610.0,0.33760547]
[1760169897837,5.60323574,110620.0,110610.0,0.33760547]
[1760169898054,5.60323574,110620.0,110610.0,0.26352547]
[1760169898212,5.60223574,110620.0,110610.0,0.33760547]
[1760169898601,5.60323574,110620.0,110610.0,0.33760547]
[1760169899718,5.60323574,110620.0,110610.0,1.01770175]
[1760169899931,5.60323574,110620.0,110610.0,1.04785365]
[1760169900094,5.60323574,110620.0,110610.0,1.0452718]
[1760169900475,5.60223574,110620.0,110610.0,1.0452718]
[1760169901176,5.60223574,110620.0,110610.0,0.33502362]
[1760169902924,5.60223574,110620.0,110610.0,0.26094362]
[1760169903143,5.64799574,110620.0,110610.0,0.03518]
[1760169903368,5.63806574,110620.0,110610.0,0.22834547]
[1760169903571,5.60223574,110620.0,110610.0,1.01512175]
[1760169904592,5.60223574,110620.0,110610.0,0.33502547]
[1760169905235,5.60223574,110620.0,110610.0,1.04527365]
[1760169905439,5.60223574,110620.0,110610.0,1.38527365]
[1760169905645,5.60223574,110620.0,110610.0,1.24567434]
[1760169906475,5.13793224,110620.0,110610.0,1.24567434]
[1760169906685,5.13793224,110620.0,110610.0,1.34567433]
[1760169906686,4.84366417,110620.0,110610.0,1.34567433]
[1760169906889,4.79085057,110620.0,110610.0,1.34567433]
[1760169907093,4.42203936,110620.0,110610.0,1.34567433]
[1760169907268,4.31098292,110620.0,110610.0,1.34567433]
[1760169907514,3.94881745,110620.0,110610.0,1.47472432]
[1760169907718,3.72382017,110620.0,110610.0,1.47472432]
[1760169908094,3.72382017,110620.0,110610.0,1.49348431]
[1760169908328,3.31076401,110620.0,110610.0,1.49448431]
[1760169908529,2.80918985,110620.0,110610.0,1.47472432]
[1760169908826,2.51802094,110620.0,110610.0,1.49348431]
[1760169909028,2.51802094,110620.0,110610.0,2.00898129]
[1760169909230,2.07356398,110620.0,110610.0,2.41098129]
[1760169909343,1.29490128,110620.0,110610.0,2.41098129]
[1760169909779,1.25393688,110620.0,110610.0,2.01098129]
[1760169910022,1.18617863,110620.0,110610.0,2.39959665]
[1760169910272,0.60920759,110620.0,110610.0,2.41452101]
[1760169910470,0.35777384,110620.0,110610.0,2.41252101]
[1760169910683,0.06776552,110620.0,110610.0,2.41452101]
[1760169910845,0.00059101,110710.0,110700.0,0.18066847]
[1760169911050,0.00059101,110710.0,110700.0,0.7382908]
[1760169911260,0.00059101,110710.0,110700.0,0.8599008]
[1760169911643,0.00059101,110710.0,110700.0,0.8900527]
[1760169912162,0.00109852,110710.0,110700.0,0.8900527]
[1760169912887,0.00109852,110710.0,110700.0,0.88167735]
[1760169914254,0.00109852,110710.0,110700.0,1.22167735]
[1760169914454,0.00109852,110710.0,110700.0,1.62167735]
[1760169915103,0.00109852,110710.0,110700.0,1.22167735]
[1760169915876,0.00109852,110710.0,110700.0,0.73118036]
[1760169916058,0.00109852,110710.0,110700.0,1.24667734]
[1760169916271,0.00109852,110710.0,110700.0,1.34667733]
[1760169916877,0.0004,110730.0,110720.0,0.57578772]
[1760169917089,0.00190965,110730.0,110720.0,1.23110469]
[1760169917323,0.00190965,110730.0,110720.0,1.36854469]
[1760169917749,0.00190965,110730.0,110720.0,1.39687972]
[1760169918610,0.00190965,110730.0,110720.0,0.88138274]
[1760169918821,0.00190965,110730.0,110720.0,1.21439281]
[1760169919030,0.00190965,110730.0,110720.0,0.69375698]
[1760169919442,0.00190965,110730.0,110720.0,0.17826]
[1760169919641,0.18252917,110730.0,110720.0,0.09602]
[1760169920085,0.18252917,110730.0,110720.0,0.03982]
[1760169920287,0.18252917,110730.0,110700.0,0.03434105]
[1760169920288,0.18063583,110720.0,110700.0,0.03434105]
[1760169920512,0.22278583,110720.0,110700.0,0.03434105]
[1760169920909,0.22278583,110720.0,110700.0,0.11658105]
[1760169921162,0.22278583,110720.0,110700.0,0.03434105]
[1760169921797,0.00053761,110730.0,110710.0,0.69275698]
[1760169922132,0.34053761,110730.0,110720.0,0.12206]
[1760169922265,0.00153761,110730.0,110720.0,0.87339281]
[1760169922467,0.00053761,110730.0,110720.0,0.87339281]
[1760169922881,0.18115713,110730.0,110720.0,0.09402]
[1760169923088,0.00053761,110730.0,110720.0,0.09402]
[1760169923483,0.00253761,110730.0,110720.0,0.35689583]
[1760169923719,0.00253761,110730.0,110720.0,0.87239281]
[1760169924158,0.00253761,110730.0,110720.0,1.24254471]
[1760169924538,0.00353761,110730.0,110720.0,1.24254471]
[1760169924850,0.00353761,110730.0,110720.0,0.35689583]
[1760169925056,0.00353761,110730.0,110720.0,0.09402]
[1760169925057,0.00253761,110730.0,110720.0,0.09402]
[1760169925385,0.18115713,110730.0,110710.0,0.03982]
[1760169925586,0.22430713,110730.0,110710.0,0.03982]
[1760169925751,0.22330713,110730.0,110710.0,0.2204721]
[1760169925957,0.22330713,110730.0,110710.0,0.03982]
[1760169926156,0.18141704,110720.0,110710.0,0.03982]
[1760169926360,0.23396704,110720.0,110700.0,0.54983803]
[1760169926598,0.27533583,110720.0,110700.0,0.54983803]
[1760169926810,0.00019026,110710.0,110700.0,0.81274559]
[1760169927107,0.00019026,110710.0,110700.0,0.86794559]
[1760169927484,0.00019026,110710.0,110700.0,0.60503803]
[1760169927689,0.00019026,110710.0,110700.0,0.8679465]
[1760169928269,0.00019026,110710.0,110700.0,0.8980984]
[1760169929334,0.18060491,110740.0,110720.0,0.18063583]
[1760169929491,0.18069659,110740.0,110720.0,0.55531698]
[1760169929702,0.22284659,110740.0,110720.0,0.55531698]
[1760169929904,0.00118178,110730.0,110720.0,0.81819281]
[1760169930106,0.00118178,110730.0,110720.0,0.87339281]
[1760169930317,0.00118178,110730.0,110720.0,1.24354471]
[1760169930522,0.00118178,110730.0,110720.0,0.90354471]
[1760169930719,0.00118178,110730.0,110720.0,0.38804773]
[1760169931017,0.00118178,110730.0,110720.0,0.90354471]
[1760169931252,0.00118178,110730.0,110720.0,0.87339281]
[1760169932036,0.00118178,110730.0,110720.0,0.79115281]
[1760169932248,0.00118178,110730.0,110720.0,0.87339281]
[1760169932849,0.00218178,110730.0,110720.0,0.87339281]
[1760169933372,0.00218178,110730.0,110720.0,0.90354471]
[1760169936443,0.00218178,110730.0,110720.0,0.87339281]
[1760169937014,0.00218178,110730.0,110720.0,0.90354471]
[1760169940598,0.00218178,110730.0,110720.0,0.87339281]
[1760169942259,0.00218178,110730.0,110720.0,0.90354471]
[1760169945263,0.00118178,110730.0,110720.0,0.90354471]
[1760169947561,0.00118178,110730.0,110720.0,0.38804773]
[1760169947759,0.00118178,110730.0,110720.0,0.90354471]
[1760169948581,0.00118178,110730.0,110720.0,0.87339281]
[1760169949984,0.00118178,110730.0,110720.0,0.35789583]
[1760169950220,0.00118178,110730.0,110720.0,0.87339281]
[1760169951251,0.00118178,110730.0,110720.0,0.27565583]
[1760169951406,0.00118178,110730.0,110720.0,0.87203281]
[1760169954544,0.1806405,110720.0,110700.0,0.03434105]
[1760169954751,0.12365,110720.0,110700.0,0.21500934]
[1760169954976,0.12365,110720.0,110700.0,0.03434105]
[1760169954977,0.30487768,110720.0,110700.0,0.03434105]
[1760169955190,0.66553785,110710.0,110700.0,0.00059105]
[1760169955402,0.48415,110710.0,110700.0,0.00059105]
[1760169955827,0.66480215,110710.0,110700.0,0.00059105]
[1760169956314,0.66580215,110710.0,110700.0,0.00059105]
[1760169957140,0.48515,110710.0,110700.0,0.00059105]
[1760169957351,0.40297,110710.0,110700.0,0.00059105]
[1760169957567,0.341,110710.0,110700.0,0.8648865]
[1760169958411,0.341,110710.0,110700.0,0.7840065]
[1760169958613,0.40267,110710.0,110700.0,0.03434105]
[1760169958844,0.40267,110710.0,110700.0,0.18125952]
[1760169959077,0.38156,110710.0,110700.0,0.21500952]
[1760169959287,0.341,110710.0,110700.0,0.34938952]
[1760169959521,0.341,110710.0,110700.0,0.26850952]
[1760169960830,0.001,110710.0,110700.0,0.8950384]
[1760169961047,9.168e-05,110740.0,110730.0,0.18061952]
[1760169961261,9.168e-05,110740.0,110730.0,0.7344665]
[1760169961477,9.168e-05,110740.0,110730.0,0.8688465]
[1760169961716,9.168e-05,110740.0,110730.0,0.09185]
[1760169961924,9.168e-05,110740.0,110730.0,0.27246952]
[1760169962170,0.40353168,110740.0,110730.0,0.0535]
[1760169962390,0.40335168,110740.0,110720.0,0.21898512]
[1760169962608,0.66743746,110740.0,110720.0,0.21898482]
[1760169962829,0.04075,110730.0,110720.0,0.21898482]
[1760169963048,0.40463,110730.0,110720.0,0.03835]
[1760169963254,0.40463,110730.0,110710.0,0.22046549]
[1760169963473,0.38075,110730.0,110720.0,0.03835]
[1760169963703,0.58524952,110730.0,110710.0,0.22046676]
[1760169963930,0.66713952,110730.0,110710.0,0.03982]
[1760169964146,0.22138583,110720.0,110700.0,0.21441478]
[1760169964353,0.30327583,110720.0,110700.0,0.03375]
[1760169964565,0.30327583,110720.0,110700.0,0.21441694]
[1760169964786,0.04007168,110740.0,110710.0,0.87938173]
[1760169964992,9.168e-05,110740.0,110730.0,0.7344665]
[1760169965201,0.00109168,110740.0,110730.0,0.8688465]
[1760169965412,9.168e-05,110740.0,110730.0,0.8688465]
[1760169966108,9.168e-05,110740.0,110730.0,0.35334952]
[1760169966315,0.00109168,110740.0,110730.0,0.8688465]
[1760169966730,0.24687222,110740.0,110720.0,0.03835]
[1760169966964,0.24687222,110740.0,110730.0,0.27246952]
[1760169966965,0.00109168,110740.0,110730.0,0.27246952]
[1760169967160,0.00109168,110740.0,110730.0,0.35334952]
[1760169967387,0.00109168,110740.0,110730.0,0.8688465]
[1760169967591,0.00109168,110740.0,110730.0,0.35334952]
[1760169967789,9.168e-05,110740.0,110730.0,0.35334952]
[1760169968029,0.00109168,110740.0,110730.0,0.35334952]
[1760169968447,0.00109168,110740.0,110730.0,0.09185]
[1760169968448,9.168e-05,110740.0,110730.0,0.09185]
[1760169968653,0.00109168,110740.0,110730.0,0.27246952]
[1760169969074,0.00109168,110740.0,110730.0,0.35334952]
[1760169969488,0.00109168,110740.0,110730.0,1.03112006]
[1760169969729,0.00109168,110740.0,110730.0,1.06127196]
[1760169969955,0.0004,110770.0,110760.0,0.85834114]
[1760169970184,0.0004,110770.0,110760.0,0.89560114]
[1760169970405,0.0004,110770.0,110760.0,1.06013304]
[1760169971503,0.0004,110770.0,110760.0,1.10544189]
[1760169971949,0.0004,110770.0,110760.0,1.10609953]
[1760169972431,1e-08,110770.0,110760.0,2.00553376]
[1760169972680,1e-08,110770.0,110760.0,1.950806]
[1760169972881,0.0029533,110770.0,110760.0,2.03120674]
[1760169973105,0.0029533,110770.0,110760.0,0.9832843]
[1760169973328,0.0029533,110770.0,110760.0,1.02998114]
[1760169974684,0.0029533,110770.0,110760.0,1.03098114]
[1760169975301,0.0029533,110770.0,110760.0,0.3532106]
[1760169975962,0.0029533,110770.0,110760.0,1.03098114]
[1760169976418,0.0029533,110770.0,110760.0,0.3532106]
[1760169978025,0.0029533,110770.0,110760.0,0.17264]
[1760169978237,0.3429533,110770.0,110760.0,0.2723306]
[1760169978492,0.5235076,110770.0,110760.0,0.09176]
[1760169978690,0.6766476,110770.0,110760.0,0.001]
[1760169978933,0.34,110750.0,110740.0,0.03375]
[1760169979341,0.34,110750.0,110740.0,0.08575]
[1760169979555,0.34,110750.0,110740.0,0.26635321]
[1760169979768,0.34,110750.0,110740.0,0.34857321]
[1760169980195,0.22740365,110770.0,110760.0,0.1805706]
[1760169980196,1e-08,110770.0,110760.0,0.1805706]
[1760169980402,1e-08,110770.0,110760.0,0.3519406]
[1760169981305,1e-08,110770.0,110760.0,0.3820925]
[1760169981522,1e-08,110770.0,110760.0,1.05986304]
[1760169982010,0.00100001,110770.0,110760.0,0.3820925]
[1760169982212,0.00100001,110770.0,110760.0,1.05986304]
[1760169982593,0.00100001,110770.0,110760.0,1.08486303]
[1760169982810,0.00100001,110770.0,110760.0,1.58486302]
[1760169983669,0.00100001,110770.0,110760.0,1.48486303]
[1760169983872,1e-08,110770.0,110760.0,1.58486302]
[1760169985156,1e-08,110770.0,110760.0,1.45986304]
[1760169985372,1e-08,110770.0,110760.0,1.05986304]
[1760169985596,0.0029533,110770.0,110760.0,0.3519406]
[1760169985824,0.3429533,110770.0,110760.0,0.17137]
[1760169986036,0.5235076,110770.0,110760.0,0.08915]
[1760169986321,0.3429533,110770.0,110760.0,0.3519406]
[1760169986977,0.1805543,110770.0,110760.0,0.08915]
[1760169987185,0.2183743,110770.0,110760.0,0.03715]
[1760169987392,0.21836032,110780.0,110760.0,0.26971914]
[1760169987597,0.00015212,110780.0,110770.0,0.12057]
[1760169987802,0.00015212,110780.0,110770.0,0.17257]
[1760169988053,0.00015212,110780.0,110770.0,0.3531243]
[1760169988492,0.00015212,110780.0,110770.0,1.03089484]
[1760169990077,0.00015212,110780.0,110770.0,1.06104674]
[1760169990321,0.00015212,110780.0,110770.0,0.03835]
[1760169990589,0.55924582,110780.0,110770.0,0.03835]
[1760169990792,0.60124012,110780.0,110770.0,0.03835]
[1760169991006,0.60124012,110780.0,110730.0,0.21980239]
[1760169991007,0.52061952,110730.0,110700.0,0.06468868]
[1760169991259,0.00903342,110700.0,110670.0,0.17528942]
[1760169991485,0.21845832,110720.0,110700.0,0.0302]
[1760169991717,0.18065215,110710.0,110700.0,0.0302]
[1760169992340,0.2184559,110720.0,110700.0,0.26295886]
[1760169992582,0.002,110730.0,110710.0,0.11242]
[1760169992779,0.52262176,110730.0,110710.0,0.29307151]
[1760169993041,0.37982,110730.0,110710.0,0.0302]
[1760169993290,0.56043988,110730.0,110710.0,0.0302]
[1760169993498,0.55843988,110730.0,110710.0,0.0302]
[1760169993934,0.55843988,110730.0,110710.0,0.21085149]
[1760169994144,0.18063583,110720.0,110710.0,0.0302]
[1760169994356,0.63393988,110730.0,110710.0,0.0302]
[1760169994561,0.45332,110730.0,110710.0,0.21085191]
[1760169994769,0.34,110730.0,110720.0,0.0302]
[1760169994977,0.341,110730.0,110720.0,0.21083583]
[1760169995191,0.341,110730.0,110720.0,0.34505583]
[1760169995192,0.001,110730.0,110720.0,0.34505583]
[1760169995403,0.001,110730.0,110720.0,0.37520773]
[1760169995608,0.001,110730.0,110720.0,1.05297827]
[1760169996010,0.001,110730.0,110720.0,0.37520773]
[1760169996640,0.22744108,110750.0,110730.0,0.18061637]
[1760169996850,0.21842861,110740.0,110720.0,0.26283461]
[1760169997270,0.03782,110730.0,110710.0,0.21084709]
[1760169997524,0.29392861,110740.0,110720.0,0.0302]
[1760169997734,0.34,110740.0,110720.0,0.34505528]
[1760169997939,0.52060431,110740.0,110720.0,0.34505528]
[1760169998175,0.52060355,110740.0,110720.0,0.0822]
[1760169998389,0.55842355,110740.0,110720.0,0.26283478]
[1760169998601,0.37782,110740.0,110720.0,0.26283478]
[1760169998812,0.55842503,110740.0,110720.0,0.26283478]
[1760169999028,0.55842422,110740.0,110720.0,0.26283478]
[1760169999240,0.55842422,110740.0,110720.0,0.34505478]
[1760169999448,0.55842422,110740.0,110720.0,0.26283378]
[1760169999660,0.55942422,110740.0,110720.0,0.0822]
[1760169999881,0.37882,110740.0,110720.0,0.26283474]
[1760170000120,0.03782,110750.0,110730.0,0.20915952]
[1760170000335,0.34,110740.0,110730.0,0.28948952]
[1760170000542,0.34,110740.0,110730.0,0.34163952]
[1760170000946,0.341,110740.0,110730.0,0.34163952]
[1760170001160,0.001,110740.0,110730.0,0.34163952]
[1760170001384,0.21837752,110770.0,110740.0,0.1805947]
[1760170001599,0.34,110760.0,110750.0,0.21078279]
[1760170001832,0.18055505,110770.0,110750.0,0.34326279]
[1760170002095,0.34,110770.0,110760.0,0.03002]
[1760170002314,0.22157884,110780.0,110760.0,0.2627406]
[1760170002521,0.22173096,110780.0,110760.0,0.2627406]
[1760170003102,0.5205543,110770.0,110760.0,0.03002]
[1760170003348,0.43556,110770.0,110750.0,0.21078279]
[1760170003578,0.69344632,110770.0,110750.0,0.21078279]
[1760170003823,0.43456,110770.0,110750.0,0.21078279]
[1760170004010,0.00074259,110780.0,110760.0,0.3430706]
[1760170004267,0.34,110770.0,110760.0,0.3430706]
[1760170004473,0.34,110770.0,110760.0,0.2627406]
[1760170004890,0.341,110770.0,110760.0,0.3439006]
[1760170005297,0.341,110770.0,110760.0,0.2627406]
[1760170005530,0.341,110770.0,110760.0,0.03002]
[1760170005735,0.511,110770.0,110750.0,0.21077766]
[1760170005949,0.69155583,110770.0,110750.0,0.0302]
[1760170006162,0.55864583,110770.0,110750.0,0.2107865]
[1760170006369,0.34,110770.0,110760.0,0.08079]
[1760170006575,0.34,110770.0,110760.0,0.2105906]
[1760170006785,0.34,110770.0,110760.0,0.2613606]